Cogmind - Beta 17.1 @@@ ROGUE MODE // 2026.08.31 @ 15:37:49 Player: CONM Result: Destroyed by G-47 Trooper with Particle Gun Performance ------------- Evolutions (3) 1500 Regions Visited (7) 1400 Robots Destroyed (40) 200 Value Destroyed (1377) 1377 Prototype IDs (6) 120 Alien Tech Used (0) 0 Bonus (200) 200 TOTAL SCORE: 4797 Bonus ------- Pacifist 200 Cogmind --------- Core Integrity 0/700 Matter 218/300 Energy 91/100 System Corruption 0% Temperature Cool (9) Movement Treading (160) Location -7/Storage Parts ------- > --- POWER (1) -------- (None) > --- PROPULSION (4) --- Light Treads Light Treads > --- UTILITY (5) ------ Medium Storage Unit Improved Signal Interpreter Targeting Computer Improved Targeting Computer Improved Melee Analysis Suite > --- WEAPON (3) ------- Mini Assault Cannon > --- INVENTORY (10) --- Micro Nuclear Core Carbon-fiber Leg Carbon-fiber Leg Carbon-fiber Leg Improved Light Armor Plating Shock Absorption System Shock Absorption System Authchip [Device] Peak State ------------ > --- POWER ------------ Light Nuclear Core > --- PROPULSION ------- Hover Unit Aerolev Unit Aerolev Unit Aerolev Unit > --- UTILITY ---------- Medium Storage Unit Experimental Sensor Array Utility Shielding Hardened Light Armor Plating > --- WEAPON ----------- Mini Assault Cannon Mini Assault Cannon > --- INVENTORY -------- Light Ion Engine Wheel Compact Wheel Improved VTOL Module Large Battery Light Armor Plating Shock Absorption System Shock Absorption System Mini Assault Cannon Grenade Launcher [Rating: 41] Favorites ----------- Power Light Ion Engine Engine Light Ion Engine Power Core Light Nuclear Core Propulsion Aerolev Unit Treads Light Treads Leg Carbon-fiber Leg Wheel Wheel Hover Unit Aerolev Unit Flight Unit Improved VTOL Module Utility Medium Storage Unit Device Experimental Sensor Array Storage Medium Storage Unit Processor Improved Targeting Computer Protection Utility Shielding Weapon Mini Assault Cannon Energy Cannon Heavy Ion Cannon Ballistic Gun Assault Rifle Ballistic Cannon Mini Assault Cannon Launcher Grenade Launcher Slashing Weapon Scythe Build | -11 -10 -10 -9 -9 -8 -7 -7 ------- Run | Yrd Mat Min Mat Min Mat Fac Sto Slots Evolved 6 | . . . 2 . 2 2 . Power . | . . . . . . . . Propulsion 2 | . . . 1 . 1 . . Utility 3 | . . . 1 . 1 1 . Weapon 1 | . . . . . . 1 . Parts Attached 52 | 5 1 . 2 2 12 1 29 Power 6 | 1 . . . . 1 . 4 Engine 2 | 1 . . . . . . 1 Core 4 | . . . . . 1 . 3 Reactor . | . . . . . . . . Propulsion 22 | 2 . . 1 . 6 . 13 Treads 6 | 2 . . 1 . 1 . 2 Leg 7 | . . . . . . . 7 Wheel 3 | . . . . . . . 3 Hover 5 | . . . . . 4 . 1 Flight 1 | . . . . . 1 . . Utility 14 | 1 1 . 1 1 2 . 8 Device 3 | . . . . 1 . . 2 Storage 2 | 1 . . . . 1 . . Processor 5 | . . . . . . . 5 Hackware . | . . . . . . . . Protection 4 | . 1 . 1 . 1 . 1 Artifact . | . . . . . . . . Weapon 10 | 1 . . . 1 3 1 4 Energy Gun . | . . . . . . . . Energy Cannon 1 | . . . . . . . 1 Ballistic Gun 3 | 1 . . . . 1 . 1 Ballistic Cannon 3 | . . . . . 2 1 . Launcher 2 | . . . . 1 . . 1 Special Weapon . | . . . . . . . . Impact Weapon . | . . . . . . . . Slashing Weapon 1 | . . . . . . . 1 Piercing Weapon . | . . . . . . . . Special Melee Weapon . | . . . . . . . . Unidentified Prototypes 4 | . . . . 1 3 . . Parts Lost 31 | . . . . . 4 4 23 Power 6 | . . . . . 2 . 4 Propulsion 12 | . . . . . . 2 10 Utility 7 | . . . . . 2 1 4 Weapon 6 | . . . . . . 1 5 Highest Loss Streak 6 | . . . . . 3 3 6 To Critical Strikes . | . . . . . . . . Average Backups 7 | 1 3 5 6 5 8 9 7 Power . | . . 1 1 1 1 1 . Propulsion 1 | 1 2 2 2 2 2 2 1 Utility 3 | . . 1 2 2 3 5 4 Weapon 1 | . . 1 1 . 1 1 1 Tool/Special . | . . . . . . . . Unused Backups 10 | . . . . . 3 1 6 Power 1 | . . . . . . . 1 Propulsion 1 | . . . . . . 1 . Utility 5 | . . . . . . . 5 Weapon 3 | . . . . . 3 . . Tool/Special . | . . . . . . . . Average Slot Usage (%) 74 | . 75 85 82 98 94 60 62 Engine 4 | . 14 14 11 11 5 . . Core 1 | . . . . . 2 . 3 Treads 10 | . 28 28 31 33 12 . . Leg 2 | . . . . . . . 7 Wheel 1 | . . . . . . . 3 Hover 9 | . . . . . 18 25 5 Device 2 | . . . . 3 8 . 2 Storage 9 | . 14 14 11 11 9 7 7 Processor 4 | . . . . . . . 11 Protection 10 | . 4 14 18 18 16 14 3 Ballistic Gun 4 | . 14 14 11 11 2 . 2 Ballistic Cannon 5 | . . . . . 7 6 7 Launcher 2 | . . . . 9 6 4 . Peak Build Rating 41 | 5 6 6 10 19 41 25 38 Average Rating 21 | 3 5 6 9 13 31 21 26 On Entrance 9 | . 5 6 6 10 19 18 14 Avg Prop Armor Cover (%) 9 | . . . . . 11 . 7 Naked Turns . | . . . . . . . . Heaviest Build 45 | 10 13 13 18 21 30 21 45 Greatest Support 83 | 40 40 40 63 63 83 30 60 Greatest Overweight (x) 14 | . . . . . 3 1 14 Average Overweight (x) . | . . . . . . . 1 Largest Inventory Capacity 10 | 8 8 8 8 8 10 10 10 Average Capacity 9 | 6 8 8 8 8 9 10 10 Most Carried 10 | 2 5 6 6 6 10 10 10 Average Carried 7 | 1 3 5 6 5 8 9 7 Final Capacity 10 | 8 8 8 8 8 10 10 10 Final Carried 10 | 2 5 6 6 6 10 10 8 Class Distribution -------------------- 82% | Mutant 11% | Scavenger-Mutant 5% | Gunner Dominant Class ---------------- Mutant | -10/Materials Mutant | -10/Mines Mutant | -9/Materials Mutant | -9/Mines Mutant | -8/Materials Mutant | -7/Factory Mutant | -7/Storage Resources | -11 -10 -10 -9 -9 -8 -7 -7 ----------- Run | Yrd Mat Min Mat Min Mat Fac Sto Matter Collected 1379 | 228 32 3 . 6 188 . 922 Remotely . | . . . . . . . . Salvage Created 1144 | . . . . 46 168 . 930 Parts 69 | . . . . 9 11 . 49 Haulers Intercepted 2 | . . . . . 1 . 1 Recyclers Shooed 1 | . . . . . 1 . . Parts Field Recycled . | . . . . . . . . Retrieved Matter . | . . . . . . . . Parts Self-Destructed . | . . . . . . . . Prevented . | . . . . . . . . Parts Restored . | . . . . . . . . Kills | -11 -10 -10 -9 -9 -8 -7 -7 ------- Run | Yrd Mat Min Mat Min Mat Fac Sto Combat Hostiles Destroyed 32 | . . . . 4 7 . 21 Guns 4 | . . . . 3 . . 1 Cannons 20 | . . . . . 1 . 19 AOE 8 | . . . . 1 6 . 1 Classes Destroyed 11 | . . . . 2 4 . 5 Worker 1 | . . . . . . . 1 Builder 1 | . . . . . . . 1 Tunneler 1 | . . . . 1 . . . Hauler 2 | . . . . . 1 . 1 Recycler 2 | . . . . . . . 2 Operator 1 | . . . . . 1 . . Swarmer 11 | . . . . 4 4 . 3 Grunt 8 | . . . . . 2 . 6 Sentry 6 | . . . . . 1 . 5 Hunter 6 | . . . . . . . 6 Programmer 1 | . . . . . . . 1 Best Kill Streak 7 | . . . . 3 5 . 7 Combat Bots Only 5 | . . . . 3 5 . 4 Max Kills in Single Turn 2 | . . . . 2 2 . 2 Gunslinging . | . . . . . . . . Exploded 2 | . . . . 1 2 . 1 Melee . | . . . . . . . . Uniques/NPCs Destroyed . | . . . . . . . . Combat | -11 -10 -10 -9 -9 -8 -7 -7 -------- Run | Yrd Mat Min Mat Min Mat Fac Sto Hostile Shots Fired 541 | . . 7 . 17 59 49 409 Missed 179 | . . 2 . 4 24 13 136 Hits 362 | . . 5 . 13 35 36 273 Projectile 362 | . . 5 . 13 35 36 273 Critical Strikes 9 | . . 2 . . 3 . 4 Part Disruptions 1 | . . . . . 1 . . Actively Blocked 1 | . . . . . 1 . . Damage Taken 4129 | . . 71 . 171 792 306 2789 Core 930 | . . 16 . 10 195 87 622 Absorbed by Shields 108 | . . . . . . . 108 Redirected to Shielding 40 | . . . . . 15 12 13 Core Remaining (%) 88 | 100 . 93 . 97 64 . . Volleys Fired 107 | . . 1 4 7 25 1 69 Largest 3 | . . 1 1 2 2 1 3 Hottest 133 | . . 20 20 50 80 40 133 Shots Fired 172 | . . 1 4 10 40 1 116 Gun 32 | . . 1 4 7 2 . 18 Cannon 129 | . . . . . 32 1 96 Launcher 11 | . . . . 3 6 . 2 Special . | . . . . . . . . Kinetic 134 | . . 1 4 7 34 1 87 Thermal 27 | . . . . . . . 27 Explosive 11 | . . . . 3 6 . 2 Electromagnetic . | . . . . . . . . Robot Hit Streak 15 | . . 1 5 4 8 1 15 Robot Miss Streak 9 | . . . . 1 9 . 2 Penetration Max . | . . . . . . . . Secondary Targets . | . . . . . . . . Shots Hit Robots 113 | . . 1 4 5 14 1 88 Core Hits 61 | . . 1 1 5 12 1 41 Critical Kills . | . . . . . . . . Critical Parts Destroyed . | . . . . . . . . Critical Strikes 4 | . . . . . . . 4 Blast 3 | . . . . . . . 3 Sever 1 | . . . . . . . 1 Melee Attacks 4 | . . . . . . . 4 Impact . | . . . . . . . . Slashing 4 | . . . . . . . 4 Piercing . | . . . . . . . . Sneak Attacks . | . . . . . . . . Combat Hostiles . | . . . . . . . . Follow-up Attacks . | . . . . . . . . Damage Inflicted 3394 | . . 14 50 172 638 68 2452 Guns 415 | . . 14 50 65 26 . 260 Cannons 2212 | . . . . . 275 26 1911 Explosions 578 | . . . . 107 255 . 216 Melee 64 | . . . . . . . 64 Ramming 125 | . . . . . 82 42 1 Kinetic 2104 | . . 14 50 65 301 26 1648 Thermal 523 | . . . . . . . 523 Explosive 545 | . . . . 107 222 . 216 Electromagnetic 33 | . . . . . 33 . . Impact . | . . . . . . . . Slashing 64 | . . . . . . . 64 Piercing . | . . . . . . . . Highest Corruption 2 | . . . . . 2 . . Average Corruption 2 | . . . . . 2 . . Corruption Purged . | . . . . . . . . Corruption Blocked . | . . . . . . . . Overload Shots . | . . . . . . . . Overflow Damage 38 | . . . . 4 7 . 27 Projectiles 30 | . . . . . 7 . 23 Explosions 8 | . . . . 4 . . 4 Melee . | . . . . . . . . Knockbacks 7 | . . . . . 1 . 6 Impact . | . . . . . . . . Kinetic 7 | . . . . . 1 . 6 Secondary . | . . . . . . . . Self-Inflicted Damage 321 | . . . . 70 140 19 92 Shots 8 | . . . . 3 3 . 2 Rammed 10 | . . . . . 5 5 . Targets Rammed 12 | . . . . . 5 5 2 Kicked 2 | . . . . . . . 2 Crushed . | . . . . . . . . Highest Temperature 230 | . . 16 . 6 230 5 225 Average Temperature 57 | . . 9 . 3 69 5 54 Received Heat Transfer 1189 | . . 78 . . 225 78 808 Siege Activations . | . . . . . . . . Martial Activations . | . . . . . . . . Shielding Activations . | . . . . . . . . Robots Disrupted . | . . . . . . . . Combat Hostiles . | . . . . . . . . Robots Corrupted . | . . . . . . . . Combat Hostiles . | . . . . . . . . Parts Fried . | . . . . . . . . Impact Corruptions . | . . . . . . . . Robots Melted . | . . . . . . . . Combat Hostiles . | . . . . . . . . Parts Melted . | . . . . . . . . Heat Transferred 703 | . . . . . . . 703 Parts Sabotaged . | . . . . . . . . Parts Stolen . | . . . . . . . . Parts Stripped . | . . . . . . . . Power Chain Reactions . | . . . . . . . . Alert | -11 -10 -10 -9 -9 -8 -7 -7 ------- Run | Yrd Mat Min Mat Min Mat Fac Sto Maximum Alert Level 1 | . . . . . . . 1 Low Security (%) 96 | 100 100 100 100 100 100 100 91 Level 1 3 | . . . . . . . 8 Level 2 . | . . . . . . . . Level 3 . | . . . . . . . . Level 4 . | . . . . . . . . Level 5 . | . . . . . . . . High Security . | . . . . . . . . Max Security . | . . . . . . . . Peak Influence 229 | . . . . 113 170 90 229 Initial 72 | . . . . . 27 72 22 Average 57 | . . . . 80 68 24 97 Influence Increases 1366 | . . . . 133 392 120 721 Destroy 0b10 Robot/C 640 | . . . . 80 140 . 420 Destroy 0b10 Robot/NC 40 | . . . . 5 10 . 25 Destroy Leader 174 | . . . . 10 32 . 132 Successful Hack 44 | . . . . . 14 30 . Disable Machine 135 | . . . . . 60 . 75 Destroy Structure 108 | . . . . 23 46 . 39 Partial Spotted 90 | . . . . . 15 75 . Lose Combat Pursuer 135 | . . . . 15 75 15 30 Influence Decreases 1175 | . . . . 60 306 229 580 Entered New Map 161 | . . . . . 46 87 28 Time Decay 742 | . . . . 60 220 112 350 Lost Part 270 | . . . . . 40 30 200 Lost Ally 2 | . . . . . . . 2 Squads Dispatched 16 | . 1 . . . 4 3 8 Investigation 6 | . 1 . . . 1 2 2 Extermination 2 | . . . . . . 1 1 Reinforcement 8 | . . . . . 3 . 5 Assault . | . . . . . . . . Garrison . | . . . . . . . . Intercept . | . . . . . . . . Searches Triggered . | . . . . . . . . Construction Impeded 3 | . . . . . 1 . 2 Haulers Reinforced . | . . . . . . . . Active Scanning Responses . | . . . . . . . . Cargo Convoy Interrupts . | . . . . . . . . Stealth | -11 -10 -10 -9 -9 -8 -7 -7 --------- Run | Yrd Mat Min Mat Min Mat Fac Sto Distress Signals 9 | . . . . . 3 . 6 Communications Jammed . | . . . . . . . . Distress Signals . | . . . . . . . . Times Spotted 65 | . . 2 . 5 21 3 34 Peak Tracking Total 9 | . . 2 . 4 9 2 6 Tactical Retreats 6 | . . . . 1 2 1 2 Traps | -11 -10 -10 -9 -9 -8 -7 -7 ------- Run | Yrd Mat Min Mat Min Mat Fac Sto Traps Triggered 2 | . . . . . 1 1 . Indirectly . | . . . . . . . . Trap Hack Attempts . | . . . . . . . . Triggered . | . . . . . . . . Disarmed . | . . . . . . . . Reprogrammed . | . . . . . . . . Reused . | . . . . . . . . Traps Extracted . | . . . . . . . . Installed . | . . . . . . . . Triggered . | . . . . . . . . Machines | -11 -10 -10 -9 -9 -8 -7 -7 ---------- Run | Yrd Mat Min Mat Min Mat Fac Sto Machines Disabled 9 | . . . . . 4 . 5 Max in Single Turn 2 | . . . . . 2 . 1 Machines Repaired . | . . . . . . . . Machines Dismantled . | . . . . . . . . Machines Sabotaged . | . . . . . . . . Overloaded Fab Kills . | . . . . . . . . Hacking | -11 -10 -10 -9 -9 -8 -7 -7 --------- Run | Yrd Mat Min Mat Min Mat Fac Sto Machines Accessed 17 | . 2 . 1 . 4 7 3 Terminals 13 | . 2 . 1 . 4 3 3 Fabricators 1 | . . . . . . 1 . Repair Stations . | . . . . . . . . Recycling Units 2 | . . . . . . 2 . Scanalyzers . | . . . . . . . . Garrison Access 1 | . . . . . . 1 . Total Hacks 35 | . 6 . 1 . 8 13 7 Successful 13 | . 2 . 1 . 4 5 1 Failed 22 | . 4 . . . 4 8 6 Catastrophic 8 | . 1 . . . 1 3 3 Database Lockouts . | . . . . . . . . Manual 13 | . 6 . . . 2 5 . Terminals 30 | . 6 . 1 . 8 8 7 Fabricators 1 | . . . . . . 1 . Repair Stations . | . . . . . . . . Recycling Units 3 | . . . . . . 3 . Scanalyzers . | . . . . . . . . Garrison Access 1 | . . . . . . 1 . Terminal Hacks 6 | . . . 1 . 3 1 1 Record 1 | . . . . . 1 . . Prototype ID Bank 1 | . . . 1 . . . . Open Door 1 | . . . . . . . 1 Recycling Unit Index 1 | . . . . . . 1 . Hauler Manifests 1 | . . . . . 1 . . Registered Components 1 | . . . . . 1 . . Fabricator Hacks . | . . . . . . . . Repair Station Hacks . | . . . . . . . . Recycling Unit Hacks 2 | . . . . . . 2 . Retrieve Matter 2 | . . . . . . 2 . Scanalyzer . | . . . . . . . . Garrison Access Hacks 1 | . . . . . . 1 . Unlock Access 1 | . . . . . . 1 . Unauthorized Hacks 4 | . 2 . . . 1 1 . Terminals 3 | . 2 . . . 1 . . Botnet 2 | . 1 . . . 1 . . Skim 1 | . 1 . . . . . . Fabricators 1 | . . . . . . 1 . Recompile 1 | . . . . . . 1 . Repair Stations . | . . . . . . . . Recycling Units . | . . . . . . . . Scanalyzers . | . . . . . . . . Garrison Access . | . . . . . . . . Data Cores Recovered . | . . . . . . . . Used . | . . . . . . . . Hacking Detections 10 | . 2 . . . 2 4 2 Full Trace Events 4 | . 1 . . . . 1 2 Feedback Events . | . . . . . . . . Feedback Blocked . | . . . . . . . . Robot Schematics Acquired . | . . . . . . . . Robots Built . | . . . . . . . . Authchips . | . . . . . . . . Time . | . . . . . . . . Total Robot Build Rating . | . . . . . . . . Part Schematics Acquired . | . . . . . . . . Parts Built . | . . . . . . . . Authchips . | . . . . . . . . Time . | . . . . . . . . Total Part Build Rating . | . . . . . . . . Part Studies Acquired . | . . . . . . . . Parts Repaired . | . . . . . . . . Time . | . . . . . . . . Parts Recycled . | . . . . . . . . Recycled Matter . | . . . . . . . . Retrieved Matter . | . . . . . . . . Retrieved Components . | . . . . . . . . Parts Scanalyzed . | . . . . . . . . Part Schematics Acquired . | . . . . . . . . Parts Damaged . | . . . . . . . . Bothacking | -11 -10 -10 -9 -9 -8 -7 -7 ------------ Run | Yrd Mat Min Mat Min Mat Fac Sto Used RIF Installer . | . . . . . . . . Robots Hacked . | . . . . . . . . Non-combat . | . . . . . . . . Combat . | . . . . . . . . Robot Hacks Applied . | . . . . . . . . Relay Couplers Released . | . . . . . . . . Fabnet Peak Effective % . | . . . . . . . . Robots Rewired . | . . . . . . . . Allies Hacked . | . . . . . . . . Hacks Repelled . | . . . . . . . . Allies | -11 -10 -10 -9 -9 -8 -7 -7 -------- Run | Yrd Mat Min Mat Min Mat Fac Sto Total Allies . | . . . . . . . . Largest Group . | . . . . . . . . Highest-Rated Group . | . . . . . . . . Highest-Rated Ally . | . . . . . . . . Total Orders 5 | . . . . . . . 5 EXPLORE 5 | . . . . . . . 5 Ally Attacks . | . . . . . . . . Total Damage . | . . . . . . . . Kills . | . . . . . . . . Allies Corrupted . | . . . . . . . . Allies Melted . | . . . . . . . . Intel | -11 -10 -10 -9 -9 -8 -7 -7 ------- Run | Yrd Mat Min Mat Min Mat Fac Sto Active Infowar (turns) 603 | . . . . 53 550 . . Sensors 603 | . . . . 53 550 . . Robot Analysis Total . | . . . . . . . . Derelict Logs Recovered 1 | . . 1 . . . . . Drone Launches 8 | . . . . . . . 8 Drone Recoveries . | . . . . . . . . Exploration | -11 -10 -10 -9 -9 -8 -7 -7 ------------- Run | Yrd Mat Min Mat Min Mat Fac Sto Turns Passed 2752 | 79 153 322 95 138 567 395 1003 Spaces Moved 2117 | 47 89 196 53 74 563 661 434 Core 26 | 4 . . . . . . 22 Treads 547 | 43 89 196 53 74 85 . 7 Legs 158 | . . . . . . . 158 Wheels 174 | . . . . . . . 174 Hover 1188 | . . . . . 454 661 73 Flight 24 | . . . . . 24 . . Fastest Speed 40 | 50 160 160 160 160 40 40 95 Average Speed 98 | 150 160 160 160 160 71 45 148 Slowest Speed 750 | 160 160 160 160 160 305 110 750 Overloaded Moves . | . . . . . . . . Propulsion Burnouts . | . . . . . . . . Robots Hopped . | . . . . . . . . Potential Cave-ins . | . . . . . . . . Cave-ins Triggered . | . . . . . . . . Exploration Rate (%) 28 | 3 24 60 11 21 34 15 62 Regions Visited 7 Branch Regions 3 Pre-discovered Areas 2 | . . 1 . 1 . . . Known Exits Taken . | . . . . . . . . Unknown Exits Taken 7 | 1 1 1 1 1 1 1 . Scrap Searched 1 | . . 1 . . . . . Spaces Dug . | . . . . . . . . Terrain Destroyed 107 | . . . . 24 45 . 38 Melee . | . . . . . . . . Projectile 36 | . . . . . 19 . 17 AOE 71 | . . . . 24 26 . 21 Terrain Rammed . | . . . . . . . . Walls Destroyed . | . . . . . . . . Machines Disabled . | . . . . . . . . Actions | -11 -10 -10 -9 -9 -8 -7 -7 --------- Run | Yrd Mat Min Mat Min Mat Fac Sto Total 2607 | 53 99 204 58 83 688 757 665 Wait 272 | . 7 7 . . 63 83 112 Move 2110 | 46 88 195 52 73 562 660 434 Hop . | . . . . . . . . Pick Up 22 | 2 3 1 . 1 7 4 4 Fast Attach 34 | 5 1 . 2 . 6 . 20 Attach 14 | . . . . 1 2 2 9 Detach 2 | . . . . . 1 . 1 Swap 12 | . . . . 1 7 . 4 Drop 14 | . . . . . 10 2 2 Fire 107 | . . 1 4 7 25 1 69 Melee 4 | . . . . . . . 4 Ram 10 | . . . . . 5 5 . Kick 2 | . . . . . . . 2 Crush . | . . . . . . . . Escape Stasis . | . . . . . . . . Rewire . | . . . . . . . . Trap . | . . . . . . . . Miscellaneous 4 | . . . . . . . 4 Route ------- -11/Scrapyard -10/Materials -10/Mines -9/Materials -9/Mines -8/Materials -7/Factory (discovered 2 exits: *Sto / Gar) -7/Storage History --------- Turn | Location | Event 13 | -11/Scrapyard | Discovered new exit (range 15) 80 | -11/Scrapyard | Entered Materials 81 | -10/Materials | Met a group of wandering Federalists 207 | -10/Materials | Discovered new exit (range 16) 233 | -10/Materials | Entered Mines 258 | -10/Mines | Met a Derelict bent on vengeance 300 | -10/Mines | Build established: Mutant 336 | -10/Mines | Learned location of Storage (-7) 547 | -10/Mines | Discovered new exit (range 5) 555 | -10/Mines | Entered Materials 555 | -9/Materials | Evolved 2 slots: Propulsion x1, Utility x1 634 | -9/Materials | Discovered new exit (range 8) 650 | -9/Materials | Entered Mines 731 | -9/Mines | Found a damaged Exp. Sensor Array with a note attached 734 | -9/Mines | Found Prototype Device 735 | -9/Mines | Identified Exp. Sensor Array 764 | -9/Mines | Discovered new exit (range 15) 788 | -9/Mines | Entered Materials 788 | -8/Materials | Evolved 2 slots: Propulsion x1, Utility x1 1352 | -8/Materials | Discovered new exit (range 7) 1355 | -8/Materials | Entered Factory 1355 | -7/Factory | Evolved 2 slots: Utility x1, Weapon x1 1369 | -7/Factory | Lost 3 parts (1p2u) 1692 | -7/Factory | Identified exit to Garrison 1735 | -7/Factory | Discovered new exit (range 5) 1750 | -7/Factory | Entered Storage 1755 | -7/Storage | Lost 3 parts (2n1u) 1874 | -7/Storage | Lost 7 allies 2041 | -7/Storage | Lost 3 parts (2n1u) 2382 | -7/Storage | Core integrity fell below 50% 2418 | -7/Storage | Lost 4 parts (1p2n1w) 2467 | -7/Storage | Lost 4 parts (1p1u2w) 2699 | -7/Storage | Core integrity fell below 20% 2753 | -7/Storage | Destroyed by G-47 Trooper with Particle Gun Last Messages --------------- 02602_ Acquired 28 matter. 02622_ Y-54 Guardian destroyed. 02626_ Acquired 18 matter. 02629_ Acquired Imp. Light Armor Plating. 02633_ K-01 Serf collects debris. 02677_ Y-54 Guardian Imp. Light Armor Plating severed. 02682_ Y-54 Guardian destroyed. 02686_ Scythe destroyed. 02686_ Kicked Y-54 Guardian out of the way. 02692_ Lgt. Nuclear Core destroyed. 02695_ Carbon-fiber Leg destroyed. 02698_ Transport Mainframe disabled. 02702_ Carbon-fiber Leg destroyed. 02709_ Acquired 6 matter. 02711_ Acquired 5 matter. 02724_ Y-54 Guardian destroyed. 02726_ Acquired 6 matter. 02727_ Acquired 7 matter. 02732_ Carbon-fiber Leg destroyed. 02750_ Acquired Lgt. Treads. Map ----- +----------------------------------------------------+ | ????????????????????? """ # # | | ??????????????????????""" ?# " | | ?????????????????????? ??# # | | ?????????????????######+######### | | ?????????????????? # | | ??????????????""""""%# | | ??????????????"[! |" + """"" | | ??????????????"!!%[ # """"" | | ????????????# """""" +% """"" | | ????????????# #% """"" | | ????????????# #[ | | ????????????# # | | ????????????# # """"" | | ????????????########## """" | | ?????????###?????????# """" | | ?????????# ??????# """" % | | ????????? """"?????# | | ??????????! """??????### | | ?????????? """????????# """"" | | ??????????? ""?????????# """"" | | ?????#####? ???????### """" | | ?????# ###/###########% """"" | | ?????# % % | | ?????# #####"###### % | | ????###g####????????# % | | ????# @ *#?######## | | ????# """ !#?# # | | ????# """"!%## # | | ????# """"%### + % % % * | | ????# """"%#?# #### ######## | | ????# #?# #?## ###????# | | ????##"T"###?# ##=#[##?????# | | ??????"""????########?##+######## | | ??????###?????????????# !%* #? | | ??????????????????????# *[ #? | | ??????????????????????# """" #? | | ????????????????###???# "" " #? | | ??????????????###"##### """!!" #? | | ?????????????## #!!!!## " !" " #? | | ?????????????# ## "/!" #? | | ?????????????# # !!!## """ #? | | #########????# ####### #? | | # #######+###########+##### | | # # % # | | # " + | | # # # | | # # #####"########## # | | #| + #?# ##?# # # | | # # #?# T#?# # + | | # # #?##" "#### # # | +----------------------------------------------------+ Best States ------------- Heat Dissipation 34 Energy Generation 15 Energy Capacity 160 Matter Stores 300 Matter Capacity 300 Sight Range 16 Robot Scan Range 20 Terrain Scan Density 10 Armor Coverage 300 Utility Shielding 33 Evasion (%) 57 Targeting Accuracy 11 Melee Accuracy 6 Recoil Reduction 4 Authchip Count 1 Item Schematics ----------------- None Robot Schematics ------------------ None Fabricated ------------ Nothing Repaired ---------- Nothing Studied --------- None Alien Tech Used ----------------- None Achievements -------------- Bending The Rules Challenges ------------ None Game ------ Seed HybridHugeRedirector Manual? 0 Play Time 00:38:30 Cumulative 181.0 hours Start 2026.08.30 @ 23:08:14 End 2026.08.31 @ 15:37:49 Sessions 1 Manual Loads 0 Difficulty Rogue Special Mode None Game No. 199 Rogue 199 Adventurer 0 Explorer 0 Win Type - Total 0 Types 0/0/0/0/0/0/0/0/0/0 Lore% 59 Gallery% 46 Achievement% 35 Wizard Run 0 Options --------- Layout 0 ASCII 0 Keyboard 0 Movement Arrows Keybinds 0 Fullscreen 1 Font 20/SmallcapsGlow Map View 66x50 Zoom Use 0% Tactical HUD 1 Map Filters NONE Filters NONE Steam 1 RUN: 84b4617e-df53-4290-891c-770d4f7e3c67